bitfinex-derivatives/quotes_SOLF0:USTF0_20250411
["timestamp","ask_amount","ask_price","bid_price","bid_amount"]
[1744373935002,0.05929099,118.05,118.03,0.06188899]
[1744373935003,0.05929099,118.05,118.03,8.53888899]
[1744373935196,8.53549099,118.05,118.03,8.53888899]
[1744373936504,0.05929099,118.05,118.04,8.4766]
[1744373945408,0.05929099,118.05,118.04,21.90377941]
[1744373945611,33.16,118.07,118.06,8.4751]
[1744373945805,33.16,118.1,118.05,2.1317]
[1744373946310,8.4733,118.09,118.07,8.4741]
[1744373946708,8.52811068,118.09,118.07,8.52996655]
[1744373947415,0.05481068,118.09,118.08,8.4737]
[1744373951609,8.52781068,118.09,118.07,8.52986655]
[1744373951917,0.05481068,118.09,118.07,0.05586655]
[1744373952111,0.05481068,118.09,118.08,8.4737]
[1744373954917,13.80613,118.11,118.1,8.4723]
[1744373956015,33.14,118.16,118.14,8.4694]
[1744373956207,41.6083,118.16,118.14,8.4694]
[1744373956409,41.66290506,118.16,118.14,8.52371132]
[1744373956605,575.79626691,118.23,118.22,8.4637]
[1744373956920,2.2989,118.32,118.22,46.56717941]
[1744373957114,2.2989,118.32,118.28,13.42717941]
[1744373957317,13.42717941,118.36,118.28,46.56717941]
[1744373957516,2.257,118.37,118.28,58.85564713]
[1744373957718,265.72360449,118.29,118.28,42.63504713]
[1744373958015,224.35140449,118.29,118.28,29.20786772]
[1744373958222,224.35140449,118.29,118.28,75.77504713]
[1744373958520,131.34176977,118.29,118.28,75.77504713]
[1744373958719,55.90446977,118.29,118.28,75.77504713]
[1744373958922,55.90446977,118.29,118.28,137.77504713]
[1744373959319,108.5166963,118.3,118.29,8.4587]
[1744373959515,0.06231654,118.3,118.29,20.74716772]
[1744373959711,1.654e-05,118.3,118.29,20.74716772]
[1744373960718,1.654e-05,118.3,118.29,182.15712307]
[1744373960920,1.654e-05,118.3,118.29,185.89360548]
[1744373961122,1.654e-05,118.3,118.29,182.15712307]
[1744373962520,1.654e-05,118.3,118.29,211.03712307]
[1744373962819,1.654e-05,118.3,118.29,244.15712307]
[1744373963020,4.91890919,118.38,118.32,8.4564]
[1744373963221,4.91890919,118.38,118.33,33.12]
[1744373963621,4.91890919,118.38,118.34,33.12]
[1744373964223,4.4404,118.39,118.35,0.05509821]
[1744373964424,4.4404,118.39,118.33,33.12]
[1744373964626,8.4527,118.38,118.32,8.4565]
[1744373964923,4.4404,118.39,118.29,220.46695413]
[1744373965119,8.4522,118.38,118.37,1138.88312133]
[1744373965423,29.84532596,118.38,118.37,1138.88312133]
[1744373965724,38.28532596,118.38,118.37,1138.88312133]
[1744373966227,29.84532596,118.38,118.37,1138.88312133]
[1744373967026,29.84532596,118.38,118.37,351.1006379]
[1744373967224,4.50135897,118.39,118.37,351.1006379]
[1744373967623,0.06095897,118.39,118.37,351.1006379]
[1744373969226,0.06095897,118.39,118.38,8.4522]
[1744373969725,0.06095897,118.39,118.38,41.5522]
[1744373971130,0.06095897,118.39,118.38,8.4522]
[1744373971429,0.06095897,118.39,118.38,41.5322]
[1744373973326,43.11088596,118.45,118.38,711.18]
[1744373973327,21.71776,118.45,118.38,711.18]
[1744373973530,21.71776,118.45,118.4,21.39312596]
[1744373973727,21.71776,118.45,118.41,33.08]
[1744373973938,21.71776,118.45,118.38,691.05312596]
[1744373974138,21.71776,118.45,118.39,33.08]
[1744373974528,0.05383693,118.43,118.41,0.06038196]
[1744373975032,0.05383693,118.43,118.42,33.08]
[1744373975337,3.693e-05,118.43,118.42,41.5294]
[1744373976435,3.693e-05,118.43,118.42,103.5294]
[1744373976634,3.693e-05,118.43,118.42,8.4494]
[1744373976834,3.693e-05,118.43,118.42,41.5094]
[1744373988043,3.693e-05,118.43,118.42,8.4494]
[1744373988243,3.693e-05,118.43,118.41,8.51018196]
[1744373988746,3.693e-05,118.43,118.42,8.4494]
[1744373990845,3.693e-05,118.43,118.42,21.79872458]
[1744373991944,3.693e-05,118.43,118.42,8.4494]
[1744373992645,3.693e-05,118.43,118.42,41.5894]
[1744373997144,3.693e-05,118.43,118.42,49.94451291]
[1744373999551,3.693e-05,118.43,118.42,49.99008199]
[1744374000147,3.693e-05,118.43,118.42,53.73214885]
[1744374002553,3.693e-05,118.43,118.42,53.75028405]
[1744374003553,3.693e-05,118.43,118.42,53.75369774]
[1744374009760,3.693e-05,118.43,118.42,12.16429774]
[1744374010157,3.693e-05,118.43,118.42,12.18322607]
[1744374010859,3.693e-05,118.43,118.42,20.63262607]
[1744374011861,3.693e-05,118.43,118.42,20.67663361]
[1744374013456,3.693e-05,118.43,118.41,0.06038196]
[1744374013961,8.4494,118.42,118.41,0.06038196]
[1744374014361,3.693e-05,118.43,118.41,0.06038196]
[1744374014566,8.44913693,118.43,118.41,0.06038196]
[1744374015065,3.693e-05,118.43,118.41,0.06038196]
[1744374016466,8.44913693,118.43,118.41,0.06038196]
[1744374018563,8.4494,118.42,118.41,0.06038196]
[1744374018872,3.693e-05,118.43,118.41,8.51038196]
[1744374019069,3.693e-05,118.43,118.41,0.06038196]
[1744374019569,8.44923693,118.43,118.41,0.06038196]
[1744374019868,3.693e-05,118.43,118.41,0.06038196]
[1744374020265,8.4494,118.42,118.41,0.06038196]
[1744374021167,8.44903693,118.43,118.41,8.51028196]
[1744374021572,3.693e-05,118.43,118.41,0.06038196]
[1744374022271,8.4494,118.42,118.41,0.06038196]
[1744374025574,8.4494,118.42,118.41,8.30672696]
[1744374028478,8.44903693,118.43,118.41,8.30672696]
[1744374028672,8.44903693,118.43,118.42,8.246345]
[1744374030880,50.03090145,118.43,118.33,393.04]
[1744374031080,8.55086452,118.39,118.34,8.55086452]
[1744374031579,8.4521,118.39,118.35,17.00486452]
[1744374031779,8.55086452,118.39,118.35,8.55086452]
[1744374031982,8.50718872,118.38,118.36,0.05391952]
[1744374032182,0.05448872,118.38,118.36,8.60478404]
[1744374032677,0.05448872,118.38,118.36,50.09818404]
[1744374033082,33.04,118.43,118.37,8.55086452]
[1744374033284,53.03700823,118.46,118.38,8.4517]
[1744374033682,8.45,118.42,118.38,8.4517]
[1744374033883,8.45,118.42,118.39,62.0]
[1744374034083,8.50863029,118.42,118.39,62.05416368]
[1744374034779,0.05863029,118.42,118.39,70.50516368]
[1744374035079,0.05863029,118.42,118.39,95.11416368]
[1744374036282,0.05863029,118.42,118.4,8.4505]
[1744374036483,0.05863029,118.42,118.39,95.11416368]
[1744374036684,0.05863029,118.42,118.39,0.05416368]
[1744374037184,8.4505,118.41,118.39,0.05416368]
[1744374039289,8.4508,118.4,118.39,0.05416368]
[1744374042189,6.7174,118.41,118.33,47.88899948]
[1744374042489,8.453,118.37,118.35,8.4539]
[1744374043089,8.51647321,118.37,118.35,8.51280809]
[1744374043589,0.06347321,118.37,118.35,8.51280809]
[1744374044393,0.06347321,118.37,118.36,8.4537]
[1744374047893,0.06347321,118.37,118.35,70.51310809]
[1744374048197,8.51637321,118.37,118.35,70.51310809]
[1744374048396,0.06347321,118.37,118.35,70.51310809]
[1744374048589,0.06347321,118.37,118.36,8.4537]
[1744374051196,8.51637321,118.37,118.35,8.51300809]
[1744374052799,8.4537,118.36,118.35,0.05890809]
[1744374056098,0.06347321,118.37,118.35,0.05890809]
[1744374056507,8.4537,118.36,118.35,0.05890809]
[1744374056709,0.06347321,118.37,118.35,0.05890809]
[1744374057307,0.06347321,118.37,118.36,8.4537]
[1744374057707,0.06347321,118.37,118.36,17.00939577]
[1744374058004,41.59569577,118.43,118.36,41.59569577]
[1744374058203,8.55569577,118.44,118.39,8.55569577]
[1744374058404,8.4498,118.42,118.39,17.00659577]
[1744374058903,8.4498,118.42,118.39,17.06864474]
[1744374059109,8.4501,118.41,118.39,17.06864474]
[1744374059304,8.4501,118.41,118.39,8.51294897]
[1744374059608,0.06201469,118.42,118.4,8.4508]
[1744374059909,8.51201469,118.42,118.4,8.4508]
[1744374060107,0.06201469,118.42,118.4,8.4508]
[1744374060610,8.51181469,118.42,118.4,8.4508]
[1744374061005,0.06201469,118.42,118.41,8.4501]
[1744374062906,33.04,118.48,118.44,8.4477]
[1744374063112,33.04,118.48,118.42,33.04]
[1744374063408,46.39851316,118.48,118.42,41.4888]
[1744374063610,48.66471316,118.48,118.42,33.04]
[1744374064001,8.50134483,118.46,118.44,8.51176487]
[1744374064410,0.05444483,118.46,118.44,8.51176487]
[1744374065513,8.4472,118.45,118.44,0.06426487]
[1744374065715,0.05444483,118.46,118.44,0.06426487]
[1744374066017,8.4472,118.45,118.44,0.06426487]
[1744374067716,8.50134483,118.46,118.44,8.51216487]
[1744374068217,0.05444483,118.46,118.45,8.4472]
[1744374068618,0.05444483,118.46,118.44,0.06426487]
[1744374068817,8.50134483,118.46,118.44,8.51186487]
[1744374069320,0.05444483,118.46,118.44,0.06426487]
[1744374070016,0.05444483,118.46,118.45,8.4472]
[1744374071115,0.05444483,118.46,118.45,41.4872]
[1744374071915,4.483e-05,118.46,118.45,41.4872]
[1744374075925,7.89708,118.49,118.48,8.4451]
[1744374076112,7.89708,118.49,118.48,41.4451]
[1744374076721,37.4492,118.54,118.48,33.0]
[1744374076922,0.02078199,118.5,118.49,13.35851316]
[1744374077319,12.8504,118.54,118.51,8.4424]
[1744374077520,0.02078199,118.53,118.51,8.4424]
[1744374077719,0.02078199,118.53,118.51,8.50139489]
[1744374080023,0.02078199,118.53,118.52,8.4422]
[1744374081520,0.02078199,118.53,118.51,0.05899489]
[1744374081725,8.55507971,118.53,118.51,0.05899489]
[1744374081914,8.53429772,118.52,118.48,33.0]
[1744374082424,8.53429772,118.52,118.49,8.4441]
[1744374082628,2.22598199,118.53,118.49,8.4441]
[1744374082923,8.4431,118.51,118.49,8.4441]
[1744374083122,8.4431,118.51,118.5,0.05856326]
[1744374084216,8.4427,118.52,118.5,0.05856326]
[1744374084625,10.76027971,118.53,118.5,0.05856326]
[1744374085027,8.443,118.51,118.5,0.05856326]
[1744374087026,8.4427,118.52,118.5,0.05856326]
[1744374087321,10.76027971,118.53,118.5,0.05856326]
[1744374087533,8.4427,118.52,118.5,0.05856326]
[1744374087926,8.443,118.51,118.5,0.05856326]
[1744374088330,16.97729772,118.51,118.5,0.05856326]
[1744374090229,8.443,118.51,118.5,0.05856326]
[1744374094339,8.4427,118.52,118.5,0.05856326]
[1744374094933,8.4427,118.52,118.5,8.50206326]
[1744374095129,8.4427,118.52,118.5,0.05856326]
[1744374095330,8.443,118.51,118.5,0.05856326]
[1744374095635,35.22598199,118.53,118.5,0.05856326]
[1744374096333,8.4422,118.52,118.5,0.05856326]
[1744374096534,8.4422,118.52,118.5,8.50226326]
[1744374096841,35.22598199,118.53,118.5,0.05856326]
[1744374097228,8.4427,118.52,118.5,0.05856326]
[1744374097934,8.4427,118.52,118.5,8.50186326]
[1744374098337,8.443,118.51,118.5,0.05856326]
[1744374098935,8.4426,118.52,118.5,8.50226326]
[1744374099732,8.443,118.51,118.5,0.05856326]
[1744374099937,8.53429772,118.51,118.46,41.53429772]
[1744374100138,8.53429772,118.51,118.46,8.53429772]
[1744374100435,8.4447,118.49,118.47,16.98009772]
[1744374101037,8.50006165,118.49,118.47,17.03887264]
[1744374102243,0.05536165,118.49,118.48,8.4451]
[1744374103640,0.05536165,118.49,118.47,17.03847264]
[1744374104638,8.49986165,118.49,118.47,17.03847264]
[1744374106343,8.4451,118.48,118.47,0.05877492]
[1744374113847,16.97939772,118.48,118.47,0.05877492]
[1744374114252,8.447,118.46,118.43,8.53429772]
[1744374114751,8.447,118.46,118.43,16.98259772]
[1744374114948,8.447,118.46,118.44,8.53429772]
[1744374115544,8.5088661,118.46,118.44,8.59429489]
[1744374116449,8.5088661,118.46,118.44,17.04189489]
[1744374120153,8.4472,118.45,118.44,8.59429489]
[1744374120358,8.4472,118.45,118.44,0.05999717]
[1744374121459,8.5087661,118.46,118.44,0.05999717]
[1744374121663,8.5087661,118.46,118.44,8.59429489]
[1744374121866,0.0618661,118.46,118.45,16.98149772]
[1744374123668,8.5083661,118.46,118.45,8.53429772]
[1744374123869,8.5083661,118.46,118.44,17.04189489]
[1744374124068,0.0618661,118.46,118.44,17.04189489]
[1744374124376,0.0618661,118.46,118.44,0.05999717]
[1744374125168,8.5087661,118.46,118.44,8.50789717]
[1744374125368,8.5087661,118.46,118.44,0.05999717]
[1744374126171,8.4472,118.45,118.44,0.05999717]
[1744374129070,8.5086661,118.46,118.44,0.05999717]
[1744374130175,8.4472,118.45,118.44,0.05999717]
[1744374131475,8.5088661,118.46,118.44,0.05999717]
[1744374132477,8.5088661,118.46,118.44,8.50789717]
[1744374132776,8.5088661,118.46,118.44,17.04219489]
[1744374133279,8.5088661,118.46,118.44,8.59429489]
[1744374133480,8.4472,118.45,118.44,8.59429489]
[1744374135381,0.0618661,118.46,118.44,8.59429489]
[1744374135879,10.83399772,118.51,118.45,8.53429772]
[1744374136078,41.51429772,118.52,118.47,8.53429772]
[1744374136278,8.4439,118.5,118.47,16.97959772]
[1744374136680,8.53429772,118.51,118.46,8.53429772]
[1744374136881,8.4454,118.48,118.45,19.21789772]
[1744374137184,8.4454,118.48,118.47,0.06282417]
[1744374137385,8.58860095,118.5,118.47,0.06282417]
[1744374137880,8.4448,118.49,118.47,0.06282417]
[1744374138381,8.4448,118.49,118.47,8.50852417]
[1744374139182,8.4448,118.49,118.47,0.06282417]
[1744374139686,8.4451,118.48,118.47,0.06282417]
[1744374140579,8.58860095,118.5,118.47,0.06282417]
[1744374140886,8.58860095,118.5,118.47,8.50852417]
[1744374142185,8.49830323,118.5,118.48,8.4451]
[1744374142884,8.53429772,118.49,118.47,0.06282417]
[1744374143080,8.53429772,118.48,118.47,0.06282417]
[1744374143287,8.53429772,118.48,118.43,8.4483]
[1744374143488,8.53429772,118.47,118.42,8.53429772]
[1744374143785,10.65799772,118.47,118.42,8.53429772]
[1744374143988,8.4469,118.46,118.43,8.4486]
[1744374144183,10.65799772,118.47,118.43,8.4486]
[1744374144385,0.06037291,118.46,118.43,8.50219662]
[1744374144582,8.50727291,118.46,118.43,0.05359662]
[1744374144985,8.59467063,118.46,118.43,0.05359662]
[1744374145190,8.4476,118.45,118.43,0.05359662]
[1744374145490,8.59467063,118.46,118.43,0.05359662]
[1744374145687,8.4479,118.44,118.43,0.05359662]
[1744374146182,8.53429772,118.45,118.43,0.05359662]
[1744374146183,8.4475,118.45,118.43,0.05359662]
[1744374147086,33.04037291,118.46,118.43,0.05359662]
[1744374147386,41.57467063,118.46,118.43,0.05359662]
[1744374147586,8.4479,118.44,118.43,0.05359662]
[1744374148379,8.53429772,118.44,118.33,1045.7304]
[1744374148580,8.53429772,118.42,118.37,8.53429772]
[1744374148788,8.53429772,118.42,118.38,8.53429772]
[1744374149089,8.53429772,118.43,118.39,16.98539772]
[1744374149289,8.53429772,118.43,118.39,8.53429772]
[1744374149489,0.05959775,118.42,118.4,8.50920385]
[1744374149991,8.50899775,118.42,118.4,8.50920385]
[1744374150193,8.50899775,118.42,118.4,0.05880385]
[1744374150388,8.59389547,118.42,118.4,0.05880385]
[1744374150687,8.4501,118.41,118.4,0.05880385]
[1744374152190,17.04349547,118.42,118.4,0.05880385]
[1744374152493,8.50919775,118.42,118.4,0.05880385]
[1744374152689,8.4501,118.41,118.4,0.05880385]
[1744374153097,16.98439772,118.41,118.4,0.05880385]
[1744374157702,10.69339775,118.42,118.4,0.05880385]
[1744374157897,8.50929775,118.42,118.4,0.05880385]
[1744374158295,8.4501,118.41,118.4,0.05880385]
[1744374159798,8.4501,118.41,118.4,8.59310157]
[1744374160100,8.53429772,118.48,118.4,41.57310157]
[1744374160302,8.53429772,118.48,118.42,8.53429772]
[1744374160603,16.98029772,118.47,118.43,8.4487]
[1744374160800,16.98029772,118.47,118.42,8.53429772]
[1744374160998,0.05615237,118.46,118.43,0.05765096]
[1744374161499,0.05615237,118.46,118.43,8.50615096]
[1744374162398,0.05615237,118.46,118.43,8.59194868]
[1744374163501,0.05615237,118.46,118.44,8.4476]
[1744374167504,0.05615237,118.46,118.43,0.05765096]
[1744374171005,16.98219772,118.44,118.34,16.91]
[1744374171208,41.49429772,118.43,118.38,8.53429772]
[1744374171597,49.94329772,118.43,118.4,8.4502]
[1744374172204,8.53429772,118.42,118.4,0.05540696]
[1744374172510,8.53429772,118.41,118.34,10.67669772]
[1744374172706,8.53429772,118.39,118.34,10.67669772]
[1744374173010,8.53429772,118.39,118.36,8.4534]
[1744374173603,8.4523,118.38,118.36,0.05331073]
[1744374173809,41.49429772,118.37,118.31,15.47909956]
[1744374174001,41.49429772,118.37,118.31,14.00882198]
[1744374174002,8.53429772,118.35,118.31,14.00882198]
[1744374174198,8.53429772,118.35,118.32,8.4561]
[1744374174405,8.53429772,118.35,118.31,11.70592198]
[1744374174705,8.53429772,118.33,118.31,11.70592198]
[1744374175007,8.53429772,118.32,118.31,0.06189194]
[1744374175408,0.05441153,118.33,118.31,0.06189194]
[1744374176207,8.4565,118.32,118.31,0.06189194]
[1744374178313,0.05441153,118.33,118.26,13.38516178]
[1744374178611,32.98,118.32,118.28,8.459]
[1744374178913,8.4576,118.31,118.28,8.459]
[1744374179113,32.98,118.32,118.26,75.38516178]
[1744374179510,0.05706741,118.3,118.28,0.05460502]
[1744374179709,0.05706741,118.3,118.29,8.4587]
[1744374188018,32.98,118.35,118.34,8.4551]
[1744374188218,32.98,118.35,118.32,13.38516178]
[1744374188519,32.98,118.35,118.32,21.84106178]
[1744374188710,32.98,118.35,118.32,8.4559]
[1744374188915,41.4347,118.35,118.3,13.38516178]
[1744374189116,0.061915,118.34,118.33,8.4558]
[1744374192724,0.061915,118.34,118.32,8.4559]
[1744374192930,0.061915,118.34,118.31,0.05568983]
[1744374193528,0.061915,118.34,118.33,8.4558]
[1744374196624,32.98,118.38,118.36,8.4535]
[1744374197525,33.0420635,118.38,118.36,8.5085681]
[1744374197827,0.0620635,118.38,118.36,8.5085681]
[1744374198027,0.0620635,118.38,118.37,8.4529]
[1744374199329,0.0620635,118.38,118.37,17.00958818]
[1744374202629,0.0620635,118.38,118.37,8.4529]
[1744374203330,0.0620635,118.38,118.36,0.0550681]
[1744374203831,8.5147635,118.38,118.36,8.5086681]
[1744374204032,0.0620635,118.38,118.36,17.06535628]
[1744374204427,0.0620635,118.38,118.37,8.4529]
[1744374204628,8.55668818,118.44,118.37,32.98]
[1744374204833,8.449,118.43,118.39,8.55668818]
[1744374205034,17.00568818,118.43,118.4,8.4505]
[1744374205228,8.449,118.43,118.4,8.4505]
[1744374205421,8.4494,118.42,118.37,46.34087573]
[1744374205628,0.06506995,118.41,118.39,8.4511]
[1744374207134,33.04506995,118.41,118.38,0.06442209]
[1744374207729,46.40594568,118.41,118.38,0.06442209]
[1744374208330,33.04506995,118.41,118.38,0.06442209]
[1744374208635,46.40594568,118.41,118.38,0.06442209]
[1744374208834,8.4515,118.39,118.38,0.06442209]
[1744374209030,46.40594568,118.41,118.33,2.2408]
[1744374209228,32.96,118.4,118.33,2.2408]
[1744374209631,8.4523,118.38,118.35,8.4539]
[1744374209835,32.96,118.4,118.31,46.32087573]
[1744374210038,8.51037126,118.37,118.35,8.4543]
[1744374210337,0.05707126,118.37,118.34,0.06268079]
[1744374210838,0.05707126,118.37,118.36,8.4537]
[1744374213843,0.05707126,118.37,118.35,8.454]
[1744374214243,0.05707126,118.37,118.34,0.06268079]
[1744374214545,0.05707126,118.37,118.36,8.4537]
[1744374214753,8.50997126,118.37,118.34,0.06268079]
[1744374215246,0.05707126,118.37,118.34,0.06268079]
[1744374215650,0.05707126,118.37,118.35,8.4537]
[1744374216443,0.05707126,118.37,118.34,8.51728079]
[1744374216851,33.03707126,118.37,118.34,8.51728079]
[1744374217951,8.454,118.36,118.34,8.51728079]
[1744374219548,41.49037126,118.37,118.35,8.4544]
[1744374219756,33.03707126,118.37,118.34,0.06268079]
[1744374219953,33.03707126,118.37,118.34,62.06268079]
[1744374220255,33.03707126,118.37,118.36,8.4537]
[1744374221361,33.03707126,118.37,118.35,8.4539]
[1744374221654,0.05707126,118.37,118.35,13.36087573]
[1744374221846,0.05707126,118.37,118.35,15.55207573]
[1744374222049,0.05707126,118.37,118.36,8.4537]
[1744374222253,0.05707126,118.37,118.34,0.06268079]
[1744374222655,8.4544,118.35,118.34,0.06268079]
[1744374222956,41.4344,118.35,118.34,0.06268079]
[1744374225160,32.98,118.35,118.34,0.06268079]
[1744374225454,4.49217126,118.37,118.34,0.06268079]
[1744374226257,0.05707126,118.37,118.34,0.06268079]
[1744374226859,0.05707126,118.37,118.35,8.4539]
[1744374227850,8.51007126,118.37,118.35,8.4539]
[1744374228259,0.05707126,118.37,118.34,8.51748079]
[1744374228864,8.4539,118.36,118.34,8.51748079]
[1744374229159,0.05707126,118.37,118.35,8.4543]
[1744374230164,8.51007126,118.37,118.35,8.4543]
[1744374230366,0.05707126,118.37,118.34,8.51738079]
[1744374232163,8.51047126,118.37,118.34,8.51738079]
[1744374232666,0.05707126,118.37,118.34,0.06268079]
[1744374233158,8.4537,118.36,118.34,0.06268079]
[1744374233364,2.31977126,118.37,118.34,0.06268079]
[1744374235066,15.44367573,118.36,118.34,0.06268079]
[1744374235267,32.96,118.35,118.34,0.06268079]
[1744374235562,41.4144,118.35,118.34,0.06268079]
[1744374238570,32.96,118.35,118.34,0.06268079]
[1744374239968,8.4541,118.36,118.34,0.06268079]
[1744374241369,0.05707126,118.37,118.34,0.06268079]
[1744374241968,8.4541,118.36,118.34,0.06268079]
[1744374242270,0.05707126,118.37,118.34,0.06268079]
[1744374242973,8.4537,118.36,118.34,0.06268079]
[1744374243371,8.4537,118.36,118.34,8.51758079]
[1744374244575,8.4544,118.35,118.34,0.06268079]
[1744374244977,0.05707126,118.37,118.34,0.06268079]
[1744374245177,0.05707126,118.37,118.34,8.51748079]
[1744374245178,8.4537,118.36,118.34,8.51748079]
[1744374251782,8.51037126,118.37,118.34,8.51748079]
[1744374251978,0.05707126,118.37,118.35,8.4539]
[1744374252585,8.51007126,118.37,118.35,8.4539]
[1744374255988,0.05707126,118.37,118.34,0.06268079]
[1744374256185,41.51798667,118.36,118.34,0.06268079]
[1744374256491,17.01238667,118.35,118.34,0.06268079]
[1744374256889,8.55798667,118.35,118.3,8.4576]
[1744374257087,8.55798667,118.34,118.29,8.4583]
[1744374257387,32.96,118.33,118.29,8.4583]
[1744374257582,8.457,118.32,118.29,8.4583]
[1744374257789,32.96,118.33,118.28,2.1802]
[1744374257989,0.05904685,118.32,118.29,0.05710375]
[1744374258190,0.05904685,118.32,118.29,13.44093777]
[1744374259491,0.05904685,118.32,118.29,75.44093777]
[1744374261292,0.05904685,118.32,118.3,8.4574]
[1744374262295,8.51554685,118.32,118.3,8.4574]
[1744374264293,0.05904685,118.32,118.29,62.05710375]
[1744374264887,8.51574685,118.32,118.3,8.4574]
[1744374265893,0.05904685,118.32,118.29,0.05710375]
[1744374266082,0.05904685,118.32,118.3,13.38383402]
[1744374266288,32.96,118.36,118.3,46.34383402]
[1744374266587,32.96,118.36,118.32,13.38383402]
[1744374266986,41.414,118.36,118.34,8.4547]
[1744374267486,41.47427813,118.36,118.34,8.51508408]
[1744374268587,33.02027813,118.36,118.34,0.06038408]
[1744374268794,33.02027813,118.36,118.35,8.4544]
[1744374268994,0.06027813,118.36,118.35,8.4544]
[1744374270195,0.06027813,118.36,118.34,8.51508408]
[1744374270595,8.51397813,118.36,118.34,8.51508408]
[1744374271097,8.4544,118.35,118.34,0.06038408]
[1744374271906,8.51427813,118.36,118.34,0.06038408]
[1744374272507,0.06027813,118.36,118.34,8.51508408]
[1744374273212,0.06027813,118.36,118.35,8.4544]
[1744374275005,0.06027813,118.36,118.34,0.06038408]
[1744374275510,8.4544,118.35,118.34,0.06038408]
[1744374277805,8.4568,118.32,118.3,17.01825767]
[1744374279115,8.51012797,118.32,118.3,8.62349226]
[1744374279317,8.51012797,118.32,118.3,0.06263459]
[1744374280002,8.4572,118.31,118.3,0.06263459]
[1744374281318,0.05332797,118.32,118.3,0.06263459]
[1744374282315,0.05332797,118.32,118.31,8.4572]
[1744374282614,0.05332797,118.32,118.3,0.06263459]
[1744374283416,0.05332797,118.32,118.3,8.51993459]
[1744374283615,8.51012797,118.32,118.3,8.51993459]
[1744374284517,8.51012797,118.32,118.3,0.06263459]
[1744374284518,8.4572,118.31,118.3,0.06263459]
[1744374286618,8.51022797,118.32,118.3,0.06263459]
[1744374287014,0.05332797,118.32,118.3,0.06263459]
[1744374287718,8.51012797,118.32,118.3,8.52023459]
[1744374289429,0.05332797,118.32,118.31,8.4572]
[1744374294828,0.05332797,118.32,118.3,8.51993459]
[1744374295021,0.05332797,118.32,118.3,0.06263459]
[1744374295527,0.05332797,118.32,118.31,8.4572]
[1744374297433,8.50992797,118.32,118.3,8.52013459]
[1744374298830,0.05332797,118.32,118.3,0.06263459]
[1744374299631,8.51032797,118.32,118.3,0.06263459]
[1744374299830,0.05332797,118.32,118.3,0.06263459]
[1744374300227,8.4572,118.31,118.3,0.06263459]
[1744374300428,0.05332797,118.32,118.3,0.06263459]
[1744374301236,8.51032797,118.32,118.3,8.52053459]
[1744374301834,0.05332797,118.32,118.31,79.02164501]
[1744374302332,8.51042797,118.32,118.3,8.52023459]
[1744374302934,0.05332797,118.32,118.3,8.52023459]
[1744374304029,0.05332797,118.32,118.31,8.4572]
[1744374304831,0.05332797,118.32,118.3,8.52013459]
[1744374305034,8.50982797,118.32,118.3,8.52013459]
[1744374305933,8.4572,118.31,118.3,0.06263459]
[1744374308132,8.4593,118.29,118.27,8.4597]
[1744374308432,8.56444501,118.3,118.25,8.56444501]
[1744374308633,8.4604,118.27,118.25,17.02564501]
[1744374308929,8.56444501,118.3,118.25,8.56444501]
[1744374309129,33.02428607,118.29,118.26,0.05654376]
[1744374309527,33.02428607,118.29,118.26,8.62098877]
[1744374309835,8.4597,118.28,118.26,17.08148877]
[1744374310035,33.02428607,118.29,118.27,8.56444501]
[1744374310428,41.48328607,118.29,118.27,17.02404501]
[1744374311432,33.02428607,118.29,118.28,8.4594]
[1744374311937,33.02428607,118.29,118.27,17.02404501]
[1744374313335,33.02428607,118.29,118.28,8.4594]
[1744374313538,0.06428607,118.29,118.28,17.02384501]
[1744374314033,0.06428607,118.29,118.28,8.4594]
[1744374314236,0.06428607,118.29,118.28,17.02384501]
[1744374324350,0.06428607,118.29,118.28,8.4594]
[1744374324549,0.06428607,118.29,118.28,17.02384501]
[1744374325143,32.96,118.32,118.3,8.4573]
[1744374325342,32.96,118.32,118.3,8.56444501]
[1744374325649,32.96,118.32,118.31,8.4572]
[1744374327253,41.4165,118.32,118.3,17.07961995]
[1744374327647,41.4165,118.32,118.3,8.51517494]
[1744374327859,8.4572,118.31,118.3,0.05757494]
[1744374328058,17.02164501,118.31,118.3,0.05757494]
[1744374328259,8.4584,118.3,118.27,8.4598]
[1744374328553,8.56444501,118.31,118.27,8.4598]
[1744374328952,8.459,118.29,118.27,8.4598]
[1744374329458,8.51607485,118.29,118.27,8.52351108]
[1744374330759,0.05707485,118.29,118.27,8.52351108]
[1744374331359,8.51597485,118.29,118.27,8.52351108]
[1744374331559,8.51597485,118.29,118.27,0.06371108]
[1744374332760,8.51597485,118.29,118.27,8.52371108]
[1744374334061,8.51597485,118.29,118.27,0.06371108]